Cogmind - Beta 9.6 @@@ ROGUE MODE // 2020.06.02 @ 00:40:48 Player: Storyteller Result: Destroyed by G-47 Trooper with Particle Gun Performance ------------- Evolutions (0) 0 Regions Visited (4) 800 Robots Destroyed (2) 10 Value Destroyed (41) 41 Prototype IDs (2) 40 Alien Tech Used (0) 0 Bonus (300) 300 TOTAL SCORE: 1191 Bonus ------- Aligned with FarCom 300 Cogmind --------- Core Integrity 0/250 Matter 300/300 Energy 82/250 System Corruption 2% Temperature Cool (64) Movement Core (550) Ox10 Location -9/Mines Parts ------- > --- POWER (1) -------- Ion Engine > --- PROPULSION (2) --- (None) > --- UTILITY (2) ------ Large Storage Unit > --- WEAPON (2) ------- Latent Energy Streamer > --- INVENTORY (10) --- Flying Fortress v7 Peak State ------------ > --- POWER ------------ Ion Engine > --- PROPULSION ------- Aluminum Leg Aluminum Leg > --- UTILITY ---------- Large Storage Unit Cloak of Protection > --- WEAPON ----------- Latent Energy Streamer Light Assault Rifle > --- INVENTORY -------- Flying Fortress v7 [Rating: 26] Favorites ----------- Power Ion Engine Engine Ion Engine Propulsion Aluminum Leg Leg Aluminum Leg Wheel Wheel Utility Medium Matter Pod Device Cloak of Protection Storage Medium Matter Pod Weapon Light Assault Rifle Energy Cannon Latent Energy Streamer Ballistic Gun Light Assault Rifle Build | -11 -10 -10 -10 -9 ------- Run | Scr Mat Min Exi Min Slots Evolved . | . . . . . Power . | . . . . . Propulsion . | . . . . . Utility . | . . . . . Weapon . | . . . . . Parts Attached 14 | 6 1 . 6 1 Power 2 | 1 . . . 1 Engine 2 | 1 . . . 1 Core . | . . . . . Reactor . | . . . . . Propulsion 5 | 3 . . 2 . Treads . | . . . . . Leg 4 | 2 . . 2 . Wheel 1 | 1 . . . . Hover . | . . . . . Flight . | . . . . . Utility 4 | . 1 . 3 . Device 1 | . . . 1 . Storage 3 | . 1 . 2 . Processor . | . . . . . Hackware . | . . . . . Protection . | . . . . . Artifact . | . . . . . Weapon 3 | 2 . . 1 . Energy Gun . | . . . . . Energy Cannon 1 | . . . 1 . Ballistic Gun 2 | 2 . . . . Ballistic Cannon . | . . . . . Launcher . | . . . . . Special Weapon . | . . . . . Impact Weapon . | . . . . . Slashing Weapon . | . . . . . Piercing Weapon . | . . . . . Special Melee Weapon . | . . . . . Unidentified Prototypes 2 | . . . 2 . Parts Lost 4 | . . . . 4 Power . | . . . . . Propulsion 2 | . . . . 2 Utility 1 | . . . . 1 Weapon 1 | . . . . 1 Highest Loss Streak 4 | . . . . 4 Average Slot Usage (%) 78 | . 71 85 78 80 Engine 4 | . 14 14 . 4 Leg 26 | . 28 28 26 24 Device 6 | . . . 8 11 Storage 12 | . . 14 14 14 Energy Cannon 7 | . . . 9 14 Ballistic Gun 19 | . 28 28 18 11 Naked Turns . | . . . . . Heaviest Build 40 | 7 9 9 35 40 Greatest Support 20 | 20 20 20 20 20 Greatest Overweight (x) 10 | 1 . . 4 10 Average Overweight (x) . | . . . . 1 Largest Inventory Capacity 10 | 4 4 4 10 10 Average Capacity 4 | 4 4 4 4 10 Most Carried 4 | 4 4 3 4 4 Average Carried 3 | . 1 3 3 4 Final Capacity 10 | 4 4 4 10 10 Final Carried 4 | 1 3 3 4 4 Class Distribution -------------------- 100% | Mutant Dominant Class ---------------- Mutant | -10/Materials Mutant | -10/Mines Mutant | -10/Exiles Mutant | -9/Mines Resources | -11 -10 -10 -10 -9 ----------- Run | Scr Mat Min Exi Min Matter Collected 340 | 194 28 57 . 61 Remotely . | . . . . . Salvage Created 35 | . . . . 35 Parts 2 | . . . . 2 Haulers Intercepted . | . . . . . Recyclers Shooed . | . . . . . Parts Field Recycled . | . . . . . Retrieved Matter . | . . . . . Parts Self-Destructed . | . . . . . Prevented . | . . . . . Kills | -11 -10 -10 -10 -9 ------- Run | Scr Mat Min Exi Min Combat Hostiles Destroyed 1 | . . . . 1 AOE 1 | . . . . 1 Classes Destroyed 2 | . . . . 2 Tunneler 1 | . . . . 1 Grunt 1 | . . . . 1 Best Kill Streak 1 | . . . . 1 Combat Bots Only 1 | . . . . 1 Max Kills in Single Turn 1 | . . . . 1 Gunslinging . | . . . . . Exploded 1 | . . . . 1 Melee . | . . . . . Uniques/NPCs Destroyed . | . . . . . Combat | -11 -10 -10 -10 -9 -------- Run | Scr Mat Min Exi Min Damage Taken 1084 | . 10 21 . 1053 Core 262 | . . . . 262 Absorbed by Shields . | . . . . . Core Remaining (%) 100 | 100 . . . . Volleys Fired 4 | . 2 . . 2 Largest 2 | . 2 . . 1 Hottest 60 | . 40 . . 60 Shots Fired 6 | . 4 . . 2 Gun 4 | . 4 . . . Cannon 2 | . . . . 2 Launcher . | . . . . . Special . | . . . . . Kinetic 4 | . 4 . . . Thermal . | . . . . . Explosive . | . . . . . Electromagnetic 2 | . . . . 2 Robot Hit Streak 2 | . 2 . . 1 Robot Miss Streak 2 | . 2 . . . Penetration Max . | . . . . . Secondary Targets . | . . . . . Shots Hit Robots 3 | . 2 . . 1 Core Hits 5 | . . . . 5 Critical Hits . | . . . . . Critical Kills . | . . . . . Critical Parts Destroyed . | . . . . . Melee Attacks . | . . . . . Impact . | . . . . . Slashing . | . . . . . Piercing . | . . . . . Sneak Attacks . | . . . . . Combat Hostiles . | . . . . . Follow-up Attacks . | . . . . . Damage Inflicted 67 | . 16 . . 51 Guns 16 | . 16 . . . Cannons 4 | . . . . 4 Explosions 35 | . . . . 35 Melee . | . . . . . Ramming 12 | . . . . 12 Kinetic 16 | . 16 . . . Thermal . | . . . . . Explosive . | . . . . . Electromagnetic 39 | . . . . 39 Impact . | . . . . . Slashing . | . . . . . Piercing . | . . . . . Highest Corruption 2 | . . . . 2 Average Corruption 1 | . . . . 1 Corruption Purged . | . . . . . Overload Shots . | . . . . . Overflow Damage . | . . . . . Projectiles . | . . . . . Explosions . | . . . . . Melee . | . . . . . Knockbacks . | . . . . . Impact . | . . . . . Kinetic . | . . . . . Secondary . | . . . . . Self-Inflicted Damage 28 | . . . . 28 Shots 2 | . . . . 2 Rammed 1 | . . . . 1 Targets Rammed 1 | . . . . 1 Kicked . | . . . . . Crushed . | . . . . . Highest Temperature 55 | . . . . 55 Average Temperature 21 | . . . . 21 Received Heat Transfer 394 | . 6 . . 388 Siege Activations . | . . . . . Robots Corrupted . | . . . . . Combat Hostiles . | . . . . . Parts Fried . | . . . . . Impact Corruptions . | . . . . . Robots Melted . | . . . . . Combat Hostiles . | . . . . . Parts Melted . | . . . . . Heat Transferred . | . . . . . Parts Sabotaged . | . . . . . Parts Stolen . | . . . . . Parts Stripped . | . . . . . Power Chain Reactions . | . . . . . Missiles Intercepted . | . . . . . Latent Energy Used 70 | . . . . 70 LE Corruption 2 | . . . . 2 Alert | -11 -10 -10 -10 -9 ------- Run | Scr Mat Min Exi Min Peak Influence 20 | . 15 20 . 20 Average Influence 11 | . 14 19 . 14 Maximum Alert Level . | . . . . . Low Security (%) 100 | 100 100 100 . 100 Level 1 . | . . . . . Level 2 . | . . . . . Level 3 . | . . . . . Level 4 . | . . . . . Level 5 . | . . . . . High Security . | . . . . . Max Security . | . . . . . Squads Dispatched 2 | . 2 . . . Investigation 1 | . 1 . . . Extermination . | . . . . . Reinforcement 1 | . 1 . . . Assault . | . . . . . Garrison . | . . . . . Intercept . | . . . . . Construction Impeded . | . . . . . Haulers Reinforced . | . . . . . Stealth | -11 -10 -10 -10 -9 --------- Run | Scr Mat Min Exi Min Distress Signals 1 | . 1 . . . Communications Jammed . | . . . . . Distress Signals . | . . . . . Times Spotted 24 | . 9 3 . 12 Peak Tracking Total 22 | . 4 3 . 22 Tactical Retreats 2 | . . . . 2 Traps | -11 -10 -10 -10 -9 ------- Run | Scr Mat Min Exi Min Traps Triggered 1 | . 1 . . . Indirectly . | . . . . . Trap Hack Attempts . | . . . . . Triggered . | . . . . . Disarmed . | . . . . . Reprogrammed . | . . . . . Reused . | . . . . . Traps Extracted . | . . . . . Installed . | . . . . . Triggered . | . . . . . Machines | -11 -10 -10 -10 -9 ---------- Run | Scr Mat Min Exi Min Machines Disabled . | . . . . . Max in Single Turn . | . . . . . Machines Sabotaged . | . . . . . Garrisons Compromised . | . . . . . Overloaded Fab Kills . | . . . . . Fab Network Shutdowns . | . . . . . Hacking | -11 -10 -10 -10 -9 --------- Run | Scr Mat Min Exi Min Machines Accessed 3 | . . . 3 . Terminals . | . . . . . Fabricators . | . . . . . Repair Stations . | . . . . . Recycling Units . | . . . . . Scanalyzers . | . . . . . Garrison Access . | . . . . . Total Hacks 12 | . . . 12 . Successful 12 | . . . 12 . Failed . | . . . . . Catastrophic . | . . . . . Database Lockouts . | . . . . . Manual 2 | . . . 2 . Terminals . | . . . . . Fabricators . | . . . . . Repair Stations . | . . . . . Recycling Units . | . . . . . Scanalyzers . | . . . . . Garrison Access . | . . . . . Terminal Hacks 12 | . . . 12 . Record 12 | . . . 12 . Fabricator Hacks . | . . . . . Repair Station Hacks . | . . . . . Recycling Unit Hacks . | . . . . . Scanalyzer . | . . . . . Garrison Access Hacks . | . . . . . Unauthorized Hacks . | . . . . . Terminals . | . . . . . Fabricators . | . . . . . Repair Stations . | . . . . . Recycling Units . | . . . . . Scanalyzers . | . . . . . Garrison Access . | . . . . . Data Cores Recovered . | . . . . . Used . | . . . . . Hacking Detections . | . . . . . Full Trace Events . | . . . . . Feedback Events . | . . . . . Feedback Blocked . | . . . . . Robot Schematics Acquired . | . . . . . Robots Built . | . . . . . Matter . | . . . . . Time . | . . . . . Total Robot Build Rating . | . . . . . Part Schematics Acquired . | . . . . . Parts Built . | . . . . . Matter . | . . . . . Time . | . . . . . Total Part Build Rating . | . . . . . Parts Repaired . | . . . . . Time . | . . . . . Parts Recycled . | . . . . . Recycled Matter . | . . . . . Retrieved Matter . | . . . . . Retrieved Components . | . . . . . Parts Scanalyzed . | . . . . . Part Schematics Acquired . | . . . . . Parts Damaged . | . . . . . Bothacking | -11 -10 -10 -10 -9 ------------ Run | Scr Mat Min Exi Min Used RIF Installer . | . . . . . Robots Hacked . | . . . . . Non-combat . | . . . . . Combat . | . . . . . Robot Hacks Applied . | . . . . . Relay Couplers Released . | . . . . . Robots Rewired . | . . . . . Allies Hacked . | . . . . . Hacks Repelled . | . . . . . Allies | -11 -10 -10 -10 -9 -------- Run | Scr Mat Min Exi Min Total Allies . | . . . . . Largest Group . | . . . . . Highest-Rated Group . | . . . . . Highest-Rated Ally . | . . . . . Total Orders . | . . . . . Ally Attacks . | . . . . . Total Damage . | . . . . . Kills . | . . . . . Allies Corrupted . | . . . . . Allies Melted . | . . . . . Intel | -11 -10 -10 -10 -9 ------- Run | Scr Mat Min Exi Min Robot Analysis Total . | . . . . . Derelict Logs Recovered 1 | . . 1 . . Drone Launches . | . . . . . Drone Recoveries . | . . . . . Exploration | -11 -10 -10 -10 -9 ------------- Run | Scr Mat Min Exi Min Turns Passed 1413 | 147 178 120 813 155 Spaces Moved 1035 | 137 137 99 569 93 Core 78 | 65 . . 11 2 Treads . | . . . . . Legs 957 | 72 137 99 558 91 Wheels . | . . . . . Hover . | . . . . . Flight . | . . . . . Fastest Speed 50 | 50 120 120 120 150 Average Speed 131 | 95 120 120 139 164 Slowest Speed 550 | 120 120 120 250 550 Overloaded Moves . | . . . . . Propulsion Burnouts . | . . . . . Robots Hopped . | . . . . . Cave-ins Triggered . | . . . . . Exploration Rate (%) 37 | 5 31 26 90 36 Regions Visited 4 Branch Regions 3 Pre-discovered Areas . | . . . . . Known Exits Taken . | . . . . . Unknown Exits Taken 4 | 1 1 1 1 . Scrap Searched 2 | . . 2 . . Spaces Dug . | . . . . . Terrain Destroyed . | . . . . . Melee . | . . . . . Projectile . | . . . . . AOE . | . . . . . Actions | -11 -10 -10 -10 -9 --------- Run | Scr Mat Min Exi Min Total 1090 | 155 147 100 591 97 Wait 7 | . 5 2 . . Move 1031 | 136 136 98 568 93 Hop . | . . . . . Pick Up 16 | 9 3 . 4 . Fast Attach 6 | . . . 5 1 Attach 8 | 6 1 . 1 . Detach 3 | 1 . . 2 . Swap . | . . . . . Drop 14 | 3 . . 11 . Fire 4 | . 2 . . 2 Melee . | . . . . . Ram . | . . . . . Kick 1 | . . . . 1 Crush . | . . . . . Escape Stasis . | . . . . . Rewire . | . . . . . Trap . | . . . . . Miscellaneous . | . . . . . Route ------- -11/Scrapyard -10/Materials -10/Mines -10/Exiles -9/Mines (discovered 1 exit: [*Mat]) History --------- Turn | Location | Event 12 | -11/Scrapyard | Discovered new exit (range 15) 148 | -11/Scrapyard | Entered Materials 236 | -10/Materials | Met 8R-AWN 301 | -10/Materials | Build established: Mutant 306 | -10/Materials | Discovered new exit (range 8) 326 | -10/Materials | Entered Mines 328 | -10/Mines | Followed 8R-AWN into the Mines 439 | -10/Mines | Discovered new exit (range 5) 446 | -10/Mines | Entered Exiles 495 | -10/Exiles | Welcomed by 8R-AWN 524 | -10/Exiles | Met EX-HEX 619 | -10/Exiles | Met EX-BIN 636 | -10/Exiles | Aligned with FarCom system 637 | -10/Exiles | Given EX-Vault access code 699 | -10/Exiles | Opened EX-Vault 713 | -10/Exiles | Found Prototype Energy Cannon 713 | -10/Exiles | Identified Latent Energy Streamer 765 | -10/Exiles | Found Prototype Device 765 | -10/Exiles | Identified Cloak of Protection 788 | -10/Exiles | Found Prototype Flight Unit 841 | -10/Exiles | Warned to stay clear of 0b10 Research branches 885 | -10/Exiles | Met EX-DEC 941 | -10/Exiles | Visited The Gauntlet 1241 | -10/Exiles | Discovered new exit (range 12) 1259 | -10/Exiles | Stole three prototypes: Latent Energy Streamer, Cloak of Protection, Flying Fortress v7 1259 | -10/Exiles | Entered Mines 1259 | -9/Mines | Discovered new exit (range 12) 1284 | -9/Mines | Assembled infested the area 1374 | -9/Mines | Core integrity fell below 50% 1407 | -9/Mines | Core integrity fell below 20% 1414 | -9/Mines | Destroyed by G-47 Trooper with Particle Gun Last Messages --------------- squad. 01308_ U-05 Engineer lays Concrete. 01318_ Slammed into T-07 Excavator. 01318_ T-07 Excavator destroyed. 01319_ Acquired 26 matter. 01319_ as-57679 sneak attacks. 01319_ T-07 Excavator system corrupted by crushing effect. 01332_ as-05345 destroyed. 01366_ Acquired Ion Engine. 01376_ Acquired 35 matter. 01379_ R-06 Scavenger collects Sml. Laser. 01380_ Cloak of Protection destroyed. 01382_ Lgt. Assault Rifle destroyed. 01385_ The unstable cave ceiling collapses. 01385_ Aluminum Leg destroyed. 01399_ The unstable cave ceiling collapses. 01405_ L-31 Rogue heat short circuits Broken Melee Analysis Suite. 01405_ Aluminum Leg destroyed. 01406_ L-31 Rogue heat damages Imp. Aluminum Leg. 01407_ L-31 Rogue critical meltdown. Map ----- +----------------------------------------------------+ | | | | | | | | | | | ?????????????????????????????????????????????????? | | ?????????????????????????????????????????????????? | | ?????????????????????????????????????????????????? | | ????###??????????????????????????????????????????? | | ??### #######??????????####?????????????????????? | | ?## #??######?## %##????????????????????? | | ## #### #?## /### =! #????????????????????? | | # ##?# ### % #????????????????????? | | #?# ##????????????????????? | | ### #?????????????????????? | | #### ########## ##g #?????????????????????? | | ????## ########## #### #?????????????????###?? | | ?????# #??# #????????????????# ##? | | ????# ###########%#??# #???????????????? ## | | ????## ##?????????# #?## ##??????????????# # | | ?????####??????????#!#?# ##?????######## # | | ???????????????????# ### #????## #? | | ???????????????????#= # g ##??## #?? | | ??????????????###### = #### #?? | | ??????????????# % % a % ## #### | | ?????????????# *% @* % ### | | ?????????????# # ##=% #?# | | ????????????# # ## #??# | | ????????? ? ### ##### | | ???????? # # # | | ???????? ## # # ##t ## | | ???????? #### #?# # ###?# ###### ###### | | ???????? ????# ??#?# #???## ## #????# #????# | | ????????? ?????# ???? #????########????# #????? | | ???????????????#?????# ?????????????????# #????? | | ?????????????????????? ?????????????????# #????? | | ?????????????????????? ?????????????????#####????? | | ?????????????????????? ??????????????????????????? | | ?????????????????????? ??????????????????????????? | | ?????????????????????? ??????????????????????????? | | ?????????????????????? ??????????????????????????? | | ?????????????????????????????????????????????????? | | ?????????????????????????????????????????????????? | | ?????????????????????????????????????????????????? | | ?????????????????????????????????????????????????? | | ?????????????????????????????????????????????????? | | ?????????????????????????????????????????????????? | | ?????????????????????????????????????????????????? | | ?????????????????????????????????????????????????? | | ?????????????????????????????????????????????????? | +----------------------------------------------------+ Best States ------------- Heat Dissipation 25 Energy Generation 10 Energy Capacity 250 Matter Stores 305 Matter Capacity 400 Sight Range 16 Terrain Scan Density 10 Cloak Strength 5 Evasion (%) 50 Item Schematics ----------------- None Robot Schematics ------------------ None Fabricated ------------ Nothing Alien Tech Used ----------------- None Achievements -------------- Librarian Challenges ------------ None Game ------ Seed FusionNodeBlaster Manual? 0 Play Time 00:28:14 Cumulative 15.2 hours Start 2020.05.31 @ 20:29:04 End 2020.06.02 @ 00:40:48 Sessions 3 Manual Loads 0 Difficulty Rogue Special Mode None Game No. 25 Rogue 25 Adventurer 0 Explorer 0 Win Type - Total 0 Types 0/0/0/0/0/0/0 Lore% 10 Gallery% 14 Achievement% 12 Wizard Run 0 Options --------- ASCII 1 Keyboard 1 Movement Vi Keybinds 0 Fullscreen 1 Font 18/Terminus Map View 76x50 Tactical HUD 1 Map Filters NONE Filters NONE Steam 1 RUN: 85f787ed-e6a2-478c-8a91-04933eb92b6d